Cogmind - Beta 17 @@@ ROGUE MODE // 2026.06.28 @ 09:18:38 Player: puppuppit Result: Destroyed by D-53 Grenadier with Mini Grenade Launcher Performance ------------- Evolutions (0) 0 Regions Visited (2) 400 Robots Destroyed (46) 230 Value Destroyed (730) 730 Prototype IDs (0) 0 Alien Tech Used (0) 0 Bonus (0) 0 TOTAL SCORE: 1360 Bonus ------- None Cogmind --------- Core Integrity 0/250 Matter 265/300 Energy 121/125 System Corruption 0% Temperature Cool (0) Movement Treading (160) Location -10/Mines Parts ------- > --- POWER (1) -------- Light Ion Engine > --- PROPULSION (2) --- Light Treads > --- UTILITY (2) ------ Small Storage Unit Targeting Computer > --- WEAPON (2) ------- Light Cannon Light Cannon > --- INVENTORY (8) ---- Light Treads High-capacity Matter Pod (200) Faulty Experimental Sensor Array Light Cannon Light Cannon Light Cannon Light Cannon Makeshift Axe Peak State ------------ > --- POWER ------------ Ion Engine > --- PROPULSION ------- Light Treads Light Treads > --- UTILITY ---------- Small Storage Unit Improved Terrain Scanner > --- WEAPON ----------- EM Pulse Gun Light Assault Rifle > --- INVENTORY -------- Light Treads Medium Matter Pod [Rating: 9] Favorites ----------- Power Light Nuclear Core Engine Light Ion Engine Power Core Light Nuclear Core Propulsion Light Treads Treads Light Treads Utility Small Storage Unit Device Improved Terrain Scanner Storage Small Storage Unit Processor Targeting Computer Weapon Light Cannon Energy Gun EM Pulse Gun Ballistic Gun Light Assault Rifle Ballistic Cannon Light Cannon Build | -11 -10 -10 ------- Run | Yrd Mat Min Slots Evolved . | . . . Power . | . . . Propulsion . | . . . Utility . | . . . Weapon . | . . . Parts Attached 27 | 7 16 4 Power 4 | 1 2 1 Engine 2 | 1 . 1 Core 2 | . 2 . Reactor . | . . . Propulsion 5 | 2 3 . Treads 5 | 2 3 . Leg . | . . . Wheel . | . . . Hover . | . . . Flight . | . . . Utility 7 | 2 5 . Device 1 | . 1 . Storage 5 | 2 3 . Processor 1 | . 1 . Hackware . | . . . Protection . | . . . Artifact . | . . . Weapon 11 | 2 6 3 Energy Gun 1 | 1 . . Energy Cannon . | . . . Ballistic Gun 2 | 1 1 . Ballistic Cannon 8 | . 5 3 Launcher . | . . . Special Weapon . | . . . Impact Weapon . | . . . Slashing Weapon . | . . . Piercing Weapon . | . . . Special Melee Weapon . | . . . Unidentified Prototypes . | . . . Parts Lost 4 | . 2 2 Power 1 | . . 1 Propulsion 1 | . . 1 Utility 1 | . 1 . Weapon 1 | . 1 . Highest Loss Streak 2 | . 2 1 To Critical Strikes . | . . . Average Backups 7 | . 7 7 Power . | . . . Propulsion . | . . 1 Utility 1 | . 1 1 Weapon 5 | . 5 5 Tool/Special . | . . . Unused Backups 7 | . 1 6 Power . | . . . Propulsion . | . . . Utility 2 | . 1 1 Weapon 5 | . . 5 Tool/Special . | . . . Average Slot Usage (%) 98 | . 97 99 Engine 5 | . 2 10 Core 8 | . 11 3 Treads 27 | . 27 28 Storage 19 | . 23 14 Processor 7 | . 2 14 Ballistic Gun 1 | . 2 . Ballistic Cannon 25 | . 23 28 Peak Build Rating 9 | 7 9 9 Average Rating 8 | 5 8 7 On Entrance 5 | . 7 9 Avg Prop Armor Cover (%) . | . . . Naked Turns . | . . . Heaviest Build 20 | 15 20 16 Greatest Support 40 | 40 40 40 Greatest Overweight (x) 6 | . 6 . Average Overweight (x) . | . . . Largest Inventory Capacity 8 | 8 8 8 Average Capacity 7 | 7 8 8 Most Carried 8 | . 8 8 Average Carried 7 | . 7 7 Final Capacity 8 | 8 8 8 Final Carried 8 | . 8 8 Class Distribution -------------------- 100% | Mutant Dominant Class ---------------- Mutant | -10/Materials Mutant | -10/Mines Resources | -11 -10 -10 ----------- Run | Yrd Mat Min Matter Collected 1618 | 274 987 357 Remotely . | . . . Salvage Created 1481 | 205 1096 180 Parts 79 | 13 61 5 Haulers Intercepted 2 | . 2 . Recyclers Shooed 4 | 1 2 1 Parts Field Recycled . | . . . Retrieved Matter . | . . . Parts Self-Destructed . | . . . Prevented . | . . . Parts Restored . | . . . Kills | -11 -10 -10 ------- Run | Yrd Mat Min Combat Hostiles Destroyed 28 | . 18 10 Guns 6 | . 6 . Cannons 22 | . 12 10 Classes Destroyed 10 | 3 5 2 Worker 5 | 2 1 2 Builder 4 | . 3 1 Tunneler 5 | 3 2 . Hauler 2 | . 2 . Recycler 8 | 1 5 2 Watcher 3 | . 3 . Swarmer 6 | . 6 . Grunt 12 | . 12 . Demolisher 1 | . . 1 Assembled 9 | . . 9 Best Kill Streak 6 | 2 6 6 Combat Bots Only 6 | . 3 6 Max Kills in Single Turn 2 | 1 2 1 Gunslinging . | . . . Exploded . | . . . Melee . | . . . Uniques/NPCs Destroyed . | . . . Combat | -11 -10 -10 -------- Run | Yrd Mat Min Hostile Shots Fired 122 | . 83 39 Missed 35 | . 26 9 Hits 87 | . 57 30 Melee 9 | . . 9 Projectile 78 | . 57 21 AOE 10 | . . 10 Critical Strikes 1 | . . 1 Part Disruptions 1 | . . 1 Damage Taken 1301 | . 528 773 Core 265 | . 57 208 Absorbed by Shields . | . . . Regen/Repaired (Parts) 71 | . 71 . Core Remaining (%) 100 | 100 . . Volleys Fired 136 | 14 80 42 Largest 2 | 2 2 2 Hottest 60 | 60 60 60 Shots Fired 270 | 28 159 83 Gun 89 | 28 61 . Cannon 181 | . 98 83 Launcher . | . . . Special . | . . . Kinetic 235 | 14 138 83 Thermal . | . . . Explosive . | . . . Electromagnetic 35 | 14 21 . Robot Hit Streak 17 | 8 17 7 Robot Miss Streak 4 | 1 4 3 Penetration Max . | . . . Secondary Targets . | . . . Shots Hit Robots 168 | 19 96 53 Core Hits 74 | 8 43 23 Critical Kills . | . . . Critical Parts Destroyed . | . . . Critical Strikes 2 | . 1 1 Blast 2 | . 1 1 Melee Attacks . | . . . Impact . | . . . Slashing . | . . . Piercing . | . . . Sneak Attacks . | . . . Combat Hostiles . | . . . Follow-up Attacks . | . . . Damage Inflicted 2602 | 222 1458 922 Guns 634 | 222 412 . Cannons 1966 | . 1044 922 Explosions . | . . . Melee . | . . . Ramming 2 | . 2 . Kinetic 2229 | 48 1259 922 Thermal . | . . . Explosive . | . . . Electromagnetic 371 | 174 197 . Impact . | . . . Slashing . | . . . Piercing . | . . . Highest Corruption . | . . . Average Corruption . | . . . Corruption Purged . | . . . Corruption Blocked . | . . . Overload Shots . | . . . Overflow Damage 23 | . 1 22 Projectiles 23 | . 1 22 Explosions . | . . . Melee . | . . . Knockbacks 17 | . 3 14 Impact . | . . . Kinetic 17 | . 3 14 Secondary . | . . . Self-Inflicted Damage . | . . . Shots . | . . . Rammed 1 | . 1 . Targets Rammed 1 | . 1 . Kicked . | . . . Crushed . | . . . Highest Temperature 76 | 40 76 76 Average Temperature 18 | 18 17 20 Received Heat Transfer 165 | . 105 60 Siege Activations . | . . . Martial Activations . | . . . Shielding Activations . | . . . Robots Disrupted . | . . . Combat Hostiles . | . . . Robots Corrupted . | . . . Combat Hostiles . | . . . Parts Fried 3 | 2 1 . Impact Corruptions . | . . . Robots Melted . | . . . Combat Hostiles . | . . . Parts Melted . | . . . Heat Transferred . | . . . Parts Sabotaged . | . . . Parts Stolen . | . . . Parts Stripped . | . . . Power Chain Reactions . | . . . Alert | -11 -10 -10 ------- Run | Yrd Mat Min Maximum Alert Level . | . . . Low Security (%) 100 | 100 100 100 Level 1 . | . . . Level 2 . | . . . Level 3 . | . . . Level 4 . | . . . Level 5 . | . . . High Security . | . . . Max Security . | . . . Peak Influence 159 | 10 159 40 Initial 40 | . . 40 Average 46 | 1 78 1 Influence Increases 742 | 30 667 45 Destroy 0b10 Robot/C 380 | . 360 20 Destroy 0b10 Robot/NC 135 | 30 80 25 Destroy Leader 80 | . 80 . Successful Hack 24 | . 24 . Select Force Hacks 60 | . 60 . Disable Machine 15 | . 15 . Destroy Structure 3 | . 3 . Lose Combat Pursuer 45 | . 45 . Influence Decreases 722 | 30 561 131 Entered New Map 66 | . . 66 Time Decay 636 | 30 541 65 Lost Part 20 | . 20 . Squads Dispatched 2 | . 2 . Investigation 2 | . 2 . Extermination . | . . . Reinforcement . | . . . Assault . | . . . Garrison . | . . . Intercept . | . . . Searches Triggered . | . . . Construction Impeded . | . . . Haulers Reinforced . | . . . Active Scanning Responses . | . . . Cargo Convoy Interrupts . | . . . Stealth | -11 -10 -10 --------- Run | Yrd Mat Min Distress Signals 4 | . 2 2 Communications Jammed . | . . . Distress Signals . | . . . Times Spotted 45 | . 28 17 Peak Tracking Total 4 | . 3 4 Tactical Retreats 7 | . 3 4 Traps | -11 -10 -10 ------- Run | Yrd Mat Min Traps Triggered 8 | . 8 . Indirectly . | . . . Trap Hack Attempts . | . . . Triggered . | . . . Disarmed . | . . . Reprogrammed . | . . . Reused . | . . . Traps Extracted . | . . . Installed . | . . . Triggered . | . . . Machines | -11 -10 -10 ---------- Run | Yrd Mat Min Machines Disabled 1 | . 1 . Max in Single Turn 1 | . 1 . Machines Repaired . | . . . Machines Dismantled . | . . . Machines Sabotaged . | . . . Overloaded Fab Kills . | . . . Hacking | -11 -10 -10 --------- Run | Yrd Mat Min Machines Accessed 10 | . 10 . Terminals 7 | . 7 . Fabricators . | . . . Repair Stations 1 | . 1 . Recycling Units 2 | . 2 . Scanalyzers . | . . . Garrison Access . | . . . Total Hacks 33 | . 33 . Successful 17 | . 17 . Failed 15 | . 15 . Catastrophic 2 | . 2 . Database Lockouts 1 | . 1 . Manual 26 | . 26 . Terminals 27 | . 27 . Fabricators . | . . . Repair Stations 4 | . 4 . Recycling Units 2 | . 2 . Scanalyzers . | . . . Garrison Access . | . . . Terminal Hacks 5 | . 5 . Robot Analysis 4 | . 4 . Locate Traps 1 | . 1 . Fabricator Hacks . | . . . Repair Station Hacks 3 | . 3 . Scan Component 2 | . 2 . Repair 1 | . 1 . Recycling Unit Hacks . | . . . Scanalyzer . | . . . Garrison Access Hacks . | . . . Unauthorized Hacks 9 | . 9 . Terminals 7 | . 7 . Botnet 3 | . 3 . Operators 1 | . 1 . Skim 3 | . 3 . Fabricators . | . . . Repair Stations . | . . . Recycling Units 2 | . 2 . Tunnel 2 | . 2 . Scanalyzers . | . . . Garrison Access . | . . . Data Cores Recovered . | . . . Used . | . . . Hacking Detections 8 | . 8 . Full Trace Events . | . . . Feedback Events . | . . . Feedback Blocked . | . . . Robot Schematics Acquired . | . . . Robots Built . | . . . Authchips . | . . . Time . | . . . Total Robot Build Rating . | . . . Part Schematics Acquired . | . . . Parts Built . | . . . Authchips . | . . . Time . | . . . Total Part Build Rating . | . . . Part Studies Acquired . | . . . Parts Repaired 1 | . 1 . Time 26 | . 26 . Parts Recycled . | . . . Recycled Matter . | . . . Retrieved Matter . | . . . Retrieved Components . | . . . Parts Scanalyzed . | . . . Part Schematics Acquired . | . . . Parts Damaged . | . . . Bothacking | -11 -10 -10 ------------ Run | Yrd Mat Min Used RIF Installer . | . . . Robots Hacked . | . . . Non-combat . | . . . Combat . | . . . Robot Hacks Applied . | . . . Relay Couplers Released . | . . . Fabnet Peak Effective % . | . . . Robots Rewired . | . . . Allies Hacked . | . . . Hacks Repelled . | . . . Allies | -11 -10 -10 -------- Run | Yrd Mat Min Total Allies . | . . . Largest Group . | . . . Highest-Rated Group . | . . . Highest-Rated Ally . | . . . Total Orders . | . . . Ally Attacks . | . . . Total Damage . | . . . Kills . | . . . Allies Corrupted . | . . . Allies Melted . | . . . Intel | -11 -10 -10 ------- Run | Yrd Mat Min Active Infowar (turns) 156 | . 156 . Terrain 156 | . 156 . Robot Analysis Total 4 | . 4 . Derelict Logs Recovered 1 | . . 1 Drone Launches . | . . . Drone Recoveries . | . . . Exploration | -11 -10 -10 ------------- Run | Yrd Mat Min Turns Passed 3348 | 135 1920 1293 Spaces Moved 1748 | 56 974 718 Core 6 | 3 3 . Treads 1742 | 53 971 718 Legs . | . . . Wheels . | . . . Hover . | . . . Flight . | . . . Fastest Speed 50 | 50 160 160 Average Speed 160 | 154 160 160 Slowest Speed 350 | 160 350 160 Overloaded Moves . | . . . Propulsion Burnouts . | . . . Robots Hopped . | . . . Potential Cave-ins . | . . . Cave-ins Triggered . | . . . Exploration Rate (%) 66 | 4 96 98 Regions Visited 2 Branch Regions 1 Pre-discovered Areas 3 | . 2 1 Known Exits Taken . | . . . Unknown Exits Taken 2 | 1 1 . Scrap Searched 1 | . . 1 Spaces Dug . | . . . Terrain Destroyed . | . . . Melee . | . . . Projectile . | . . . AOE . | . . . Terrain Rammed . | . . . Walls Destroyed . | . . . Machines Disabled . | . . . Actions | -11 -10 -10 --------- Run | Yrd Mat Min Total 2035 | 76 1178 781 Wait 61 | . 50 11 Move 1746 | 55 973 718 Hop . | . . . Pick Up 13 | . 11 2 Fast Attach 34 | 7 26 1 Attach 3 | . 3 . Detach 6 | . 6 . Swap 15 | . 11 4 Drop 20 | . 17 3 Fire 136 | 14 80 42 Melee . | . . . Ram . | . . . Kick . | . . . Crush 1 | . 1 . Escape Stasis . | . . . Rewire . | . . . Trap . | . . . Miscellaneous . | . . . Route ------- -11/Scrapyard -10/Materials (discovered 4 exits: *Mat x3 / [*Min]) -10/Mines (discovered 3 exits: *Mat x2 / [*Exi]) History --------- Turn | Location | Event 6 | -11/Scrapyard | Discovered new exit (range 14) 136 | -11/Scrapyard | Entered Materials 302 | -10/Materials | Build established: Mutant 667 | -10/Materials | Discovered new exit (range 11) 900 | -10/Materials | Discovered new exit (range 12) 985 | -10/Materials | Discovered new exit (range 15) 986 | -10/Materials | Central database locked down 1150 | -10/Materials | Discovered new exit (range 9) 1827 | -10/Materials | Repaired Lgt. Treads 2056 | -10/Materials | Entered Mines 2057 | -10/Mines | Assembled infested the area 2526 | -10/Mines | Core integrity fell below 50% 2584 | -10/Mines | Identified exit to Materials 2689 | -10/Mines | Found a damaged Exp. Sensor Array with a note attached 2694 | -10/Mines | Found Prototype Device 2832 | -10/Mines | A weapon hastily lodged in a ceiling crevice suddenly fell to the ground 2883 | -10/Mines | Discovered exit to Materials (range 4) 2907 | -10/Mines | Learned location of Storage (-9) 2995 | -10/Mines | Deemed a non-threat by the Exiles lab entrance 2995 | -10/Mines | Discovered new exit (range 5) 3346 | -10/Mines | Core integrity fell below 20% 3349 | -10/Mines | Destroyed by D-53 Grenadier with Mini Grenade Launcher Last Messages --------------- tightened security following our previous successful raids." World map updated: -9/Storage. 02909_ PM-LBZ(g): "We scattered so the Unaware couldn't effectively use their advantage in numbers, and I suggest you do the same." 02909_ PM-LBZ(g) slips back into the shadows. 02960_ Acquired 10 matter. 02978_ U-05 Engineer destroyed. 02982_ Acquired 8 matter. 02995_ "No threat detected, you may enter." 02995_ EXIT=FOUND 03053_ T-07 Excavator is excavating. 03120_ R-06 Scavenger knocked back. 03121_ Acquired 8 matter. 03178_ K-01 Serf collects debris. 03341_ Lgt. Treads destroyed. 03343_ Destroyed Shock Absorption System. 03344_ The unstable cave ceiling collapses. 03346_ D-53 Grenadier destroyed. Map ----- +----------------------------------------------------+ | | | | | | | ?????????????????????????????????????? | | ???????###???????????????????????????? | | ??##### ##??????????????????????????? | | ### #???#########?????######???? | | #???# #????## ##??? | | #????# """ #????# #??? | | ##### ##????# """ #????## ##?? | | ##???####?????# """ #?????## #?? | | #?############# #??###?# #?? | | #?# #?## ## #?? | | #?# # ######### #?# #?? | | ??# # #???????# #?# #?? | | ### # #???????# #?## #?? | | # #???????# #??## ##?? | | # ####???????# #???## #??? | | # #??????????# #????##### #??? | | #??????????# #????????# #??? | | ####??????????###############??# #??? | | ??????????????????##### ##?# ##?? | | ?????????????????## # ### ##? | | ???????????####### # #? | | ?????????### ## %= % #? | | ????????## ud< @ #? | | ????????# % %### # #? | | ???????## ### ##? | | ??????## ###?## #?? | | ??????# ##????## #?? | | ##????# ##??????### ##?? | | ##???## #####????????# ##??? | | #????# #?????####???# """ ##???? | | ###### #?????# #?## """ #????? | | #?????# ## """ #????? | | #?????# #???? | | #######%##?????#### ########???? | | ##?????#%#?????????## ##??????????? | | #??????#%######?????## #???????????? | | ???????#!% #??????## ##??????????? | | #####??###### #???????# #??????????? | | #???????#%#???????# #??????????? | | ### #???????# #???????# #??????????? | | ??# #???????# #??##########??????????? | | ??# ####????#!#??# #?????????????? | | ??# #????#%#??# #?????????????? | | ??#### #????#!#### """ #?????????????? | | ?????# #????# """ #?????????????? | | ?????# ####### ### """ #?????????????? | | ?????# =%= %#?# #?????????????? | +----------------------------------------------------+ Best States ------------- Heat Dissipation 25 Energy Generation 14 Energy Capacity 250 Matter Stores 403 Matter Capacity 500 Sight Range 16 Terrain Scan Range 16 Terrain Scan Density 10 Evasion (%) 40 Targeting Accuracy 5 Recoil Reduction 2 Item Schematics ----------------- None Robot Schematics ------------------ None Fabricated ------------ Nothing Repaired ---------- Lgt. Treads | 49% | -10/Materials Studied --------- None Alien Tech Used ----------------- None Achievements -------------- None Challenges ------------ None Game ------ Seed MakeshiftSpacefoldPlating Manual? 0 Play Time 00:14:07 Cumulative 705.7 hours Start 2026.06.28 @ 09:04:40 End 2026.06.28 @ 09:18:38 Sessions 1 Manual Loads 0 Difficulty Rogue Special Mode None Game No. 345 Rogue 345 Adventurer 0 Explorer 0 Win Type - Total 7 Types 3/0/2/1/0/0/0/0/0/1 Lore% 87 Gallery% 76 Achievement% 59 Wizard Run 0 Options --------- Layout 2 ASCII 0 Keyboard 1 Movement Vi Keybinds 0 Fullscreen 1 Font 16/Proggy Map View 55x47 Zoom Use 0% Tactical HUD 1 Map Filters NONE Filters NONE Steam 0 RUN: c8cf70e1-94bb-4dbd-80a0-4574f3866f18